fUST/lending_fUST_20240524
["ID","MTS","AMOUNT","RATE_DAILY","PERIOD"]
[327865718,1716564650210,-500.0,0.00027671,13]
[327865719,1716564650220,-366.26112581,0.00027671,13]
[327865720,1716564650229,-500.0,0.00027671,13]
[327865721,1716564650238,-500.0,0.00027671,13]
[327865722,1716564650249,-500.0,0.00027671,13]
[327865723,1716564650259,-500.0,0.00027671,13]
[327865724,1716564650268,-500.0,0.00027671,13]
[327865725,1716564650278,-561.5,0.00027671,13]
[327865726,1716564650287,-500.0,0.00027671,13]
[327865727,1716564650297,-500.0,0.00027671,13]
[327865728,1716564650307,-500.0,0.00027671,13]
[327865729,1716564650316,-151.0,0.00027671,2]
[327865730,1716564650326,-609.98,0.00027671,13]
[327865731,1716564650335,-578.31025065,0.00027671,13]
[327865732,1716564650344,-500.0,0.00027671,13]
[327865733,1716564650354,-616.7,0.00027671,13]
[327865734,1716564650363,-207.784917,0.00027671,2]
[327865735,1716564650372,-969.24,0.00027671,13]
[327865736,1716564650381,-719.31,0.00027671,13]
[327865737,1716564650390,-1248.42,0.00027671,13]
[327865738,1716564650400,-151.0,0.00027671,2]
[327865739,1716564650409,-500.0,0.00027671,13]
[327865740,1716564650418,-151.0,0.00027671,2]
[327865741,1716564650427,-945.5,0.00027671,13]
[327865742,1716564650436,-158.057858,0.00027671,2]
[327865743,1716564650446,-158.057858,0.00027671,2]
[327865744,1716564650456,-151.0,0.00027671,2]
[327865745,1716564650465,-151.0,0.00027671,2]
[327865746,1716564650474,-500.0,0.00027671,13]
[327865747,1716564650483,-603.17,0.00027671,13]
[327865748,1716564650492,-2571.68,0.00027671,13]
[327865749,1716564650501,-849.22,0.00027671,13]
[327865750,1716564650510,-749.55,0.00027671,13]
[327865751,1716564650519,-151.0,0.00027671,2]
[327865752,1716564650528,-151.0,0.00027671,2]
[327865753,1716564650538,-1059.43,0.00027671,13]
[327865754,1716564650547,-7502.62,0.00027671,13]
[327865755,1716564650557,-530.31,0.00027671,13]
[327865756,1716564650566,-2504.19,0.00027671,13]
[327865757,1716564650574,-8030.01,0.00027671,13]
[327865758,1716564650583,-151.0,0.00027671,2]
[327865759,1716564650592,-151.0,0.00027671,2]
[327865760,1716564650601,-186.13086456,0.00027671,13]
[327865761,1716564650610,-500.0,0.00027671,13]
[327865762,1716564650620,-151.0,0.00027671,2]
[327865763,1716564650629,-889.01,0.00027671,13]
[327865764,1716564650638,-184.294571,0.00027671,2]
[327865765,1716564650647,-545.91,0.00027671,13]
[327865766,1716564650659,-6148.34,0.00027671,13]
[327865767,1716564650669,-1068.24,0.00027671,13]
[327865768,1716564650679,-1614.07,0.00027671,13]
[327865769,1716564650689,-500.0,0.00027671,13]
[327865770,1716564650699,-924.4,0.00027671,13]
[327865771,1716564650711,-500.0,0.00027671,13]
[327865772,1716564650720,-884.62,0.00027671,13]
[327865773,1716564650729,-500.0,0.00027671,13]
[327865774,1716564650740,-500.0,0.00027671,13]
[327865775,1716564650749,-500.0,0.00027671,13]
[327865776,1716564650759,-4788.64,0.00027671,13]
[327865777,1716564650768,-500.0,0.00027671,13]
[327865778,1716564650777,-812.5,0.00027671,13]
[327865779,1716564650786,-1661.62,0.00027671,13]
[327865780,1716564650796,-500.0,0.00027671,13]
[327865781,1716564650805,-1173.5,0.00027671,13]
[327865782,1716564650815,-806.11,0.00027671,13]
[327865783,1716564650824,-3102.78,0.00027671,13]
[327865784,1716564650833,-1278.05,0.00027671,13]
[327865785,1716564650843,-500.0,0.00027671,13]
[327865786,1716564650853,-500.0,0.00027671,13]
[327865787,1716564650863,-151.0,0.00027671,2]
[327865788,1716564650872,-151.0,0.00027671,2]
[327865789,1716564650881,-151.0,0.00027671,2]
[327865790,1716564650891,-1329.45,0.00027671,13]
[327865791,1716564650900,-1112.55,0.00027671,13]
[327865792,1716564650910,-653.06,0.00027671,13]
[327865793,1716564650920,-1910.11,0.00027671,13]
[327865794,1716564650930,-500.0,0.00027671,13]
[327865795,1716564650939,-236.159369,0.00027671,2]
[327865796,1716564650949,-151.0,0.00027671,2]
[327865797,1716564650959,-236.159369,0.00027671,2]
[327865798,1716564650968,-1049.93,0.00027671,13]
[327865799,1716564650978,-1410.9,0.00027671,13]
[327865800,1716564650987,-151.0,0.00027671,2]
[327865801,1716564650997,-500.0,0.00027671,13]
[327865802,1716564651006,-151.0,0.00027671,2]
[327865803,1716564651015,-151.0,0.00027671,2]
[327865804,1716564651025,-500.0,0.00027671,13]
[327865805,1716564651034,-500.0,0.0002768,2]
[327865806,1716564651043,-1000.0,0.00027706,2]
[327865807,1716564651052,-151.0,0.00027716,2]
[327865808,1716564651062,-151.0,0.00027716,2]
[327865809,1716564651071,-1000.0,0.00027717,2]
[327865810,1716564651080,-1055.63162946,0.00027719,2]
[327865811,1716564651090,-698.8996216,0.00027725,2]
[327865812,1716564651100,-1000.0,0.00027732,2]
[327865813,1716564651109,-291.6248309,0.00027836,2]
[327865814,1716564651119,-291.6248309,0.00027836,2]
[327865815,1716564651128,-291.6248309,0.00027836,2]
[327865816,1716564651138,-291.6248309,0.00027836,2]
[327865817,1716564651147,-4226.56801723,0.00027908,2]
[327865818,1716564651157,-417.57091557,0.0002793,2]
[327865819,1716564651166,-500.0,0.00027945,14]
[327865820,1716564651175,-500.77,0.00027945,14]
[327865821,1716564651184,-500.0,0.00027945,14]
[327865822,1716564651297,-500.0,0.00027945,14]
[327865823,1716564651307,-232.06601354,0.00027945,14]
[327865824,1716564651316,-500.0,0.00027945,14]
[327865825,1716564651326,-521.65284401,0.00027945,14]
[327865826,1716564651334,-151.0,0.00027945,2]
[327865827,1716564651343,-500.0,0.00027945,14]
[327865828,1716564651352,-151.0,0.00027945,2]
[327865829,1716564651362,-561.5,0.00027945,14]
[327865830,1716564651371,-500.0,0.00027945,14]
[327865831,1716564651380,-500.0,0.00027945,14]
[327865832,1716564651389,-500.0,0.00027945,14]
[327865833,1716564651399,-609.98,0.00027945,14]
[327865834,1716564651408,-166.96346057,0.00027945,14]
[327865835,1716564651417,-616.7,0.00027945,14]
[327865836,1716564651426,-969.24,0.00027945,14]
[327865837,1716564651435,-719.31,0.00027945,14]
[327865838,1716564651444,-1248.42,0.00027945,14]
[327865839,1716564651454,-500.0,0.00027945,14]
[327865840,1716564651463,-945.5,0.00027945,14]
[327865841,1716564651472,-500.0,0.00027945,14]
[327865842,1716564651482,-603.17,0.00027945,14]
[327865843,1716564651491,-2571.68,0.00027945,14]
[327865844,1716564651501,-849.22,0.00027945,14]
[327865845,1716564651510,-749.55,0.00027945,14]
[327865846,1716564651519,-1059.43,0.00027945,14]
[327865847,1716564651529,-7502.62,0.00027945,14]
[327865848,1716564651538,-530.31,0.00027945,14]
[327865849,1716564651547,-2504.19,0.00027945,14]
[327865850,1716564651555,-8030.01,0.00027945,14]
[327865851,1716564651565,-500.0,0.00027945,14]
[327865852,1716564651574,-889.01,0.00027945,14]
[327865853,1716564651583,-545.91,0.00027945,14]
[327865854,1716564651593,-6148.34,0.00027945,14]
[327865855,1716564651602,-1068.24,0.00027945,14]
[327865856,1716564651611,-1614.07,0.00027945,14]
[327865857,1716564651621,-500.0,0.00027945,14]
[327865858,1716564651630,-924.4,0.00027945,14]
[327865859,1716564651640,-500.0,0.00027945,14]
[327865860,1716564651649,-884.62,0.00027945,14]
[327865861,1716564651661,-500.0,0.00027945,14]
[327865862,1716564651670,-500.0,0.00027945,14]
[327865863,1716564651679,-500.0,0.00027945,14]
[327865864,1716564651687,-151.0,0.00027945,2]
[327865865,1716564651697,-4788.64,0.00027945,14]
[327865866,1716564651709,-500.0,0.00027945,14]
[327865867,1716564651718,-812.5,0.00027945,14]
[327865868,1716564651727,-1661.62,0.00027945,14]
[327865869,1716564651739,-500.0,0.00027945,14]
[327865870,1716564651748,-1173.5,0.00027945,14]
[327865871,1716564651758,-241.488827,0.00027945,2]
[327865872,1716564651767,-806.11,0.00027945,14]
[327865873,1716564651776,-241.488827,0.00027945,2]
[327865874,1716564651785,-3102.78,0.00027945,14]
[327865875,1716564651795,-1278.05,0.00027945,14]
[327865876,1716564651804,-500.0,0.00027945,14]
[327865877,1716564651814,-500.0,0.00027945,14]
[327865878,1716564651822,-153.534979,0.00027945,2]
[327865879,1716564651832,-153.534979,0.00027945,2]
[327865880,1716564651841,-1329.45,0.00027945,14]
[327865881,1716564651850,-1112.55,0.00027945,14]
[327865882,1716564651860,-653.06,0.00027945,14]
[327865883,1716564651870,-1910.11,0.00027945,14]
[327865884,1716564651879,-500.0,0.00027945,14]
[327865885,1716564651888,-1049.93,0.00027945,14]
[327865886,1716564651897,-1410.9,0.00027945,14]
[327865887,1716564651906,-500.0,0.00027945,14]
[327865888,1716564651915,-366.66027768,0.00027945,14]
[327865889,1716564651925,-11273.49195564,0.00028,4]
[327865890,1716564651934,-170.0,0.00028,10]
[327865891,1716564651943,-286.91569158,0.00028,2]
[327865892,1716564651954,-3588.42003661,0.00028,2]
[327865893,1716564651963,-221.76141425,0.00028,2]
[327865894,1716564651972,-151.767467,0.00028,2]
[327865895,1716564651981,-281.0,0.00028,2]
[327865896,1716564651991,-740.1832,0.00028,2]
[327865897,1716564652000,-1900.0,0.000281,10]
[327865898,1716564652009,-500.0,0.00028219,15]
[327865899,1716564652018,-500.77,0.00028219,15]
[327865900,1716564652027,-500.0,0.00028219,15]
[327865901,1716564652037,-500.0,0.00028219,15]
[327865902,1716564652046,-500.0,0.00028219,15]
[327865903,1716564652055,-500.0,0.00028219,15]
[327865904,1716564652064,-561.5,0.00028219,15]
[327865905,1716564652073,-500.0,0.00028219,15]
[327865906,1716564652082,-500.0,0.00028219,15]
[327865907,1716564652091,-500.0,0.00028219,15]
[327865908,1716564652101,-609.98,0.00028219,15]
[327865909,1716564652110,-616.7,0.00028219,15]
[327865910,1716564652119,-969.24,0.00028219,15]
[327865911,1716564652128,-719.31,0.00028219,15]
[327865912,1716564652137,-1248.42,0.00028219,15]
[327865913,1716564652147,-500.0,0.00028219,15]
[327865914,1716564652156,-945.5,0.00028219,15]
[327865915,1716564652165,-500.0,0.00028219,15]
[327865916,1716564652175,-603.17,0.00028219,15]
[327865917,1716564652185,-2571.68,0.00028219,15]
[327865918,1716564652194,-849.22,0.00028219,15]
[327865919,1716564652204,-749.55,0.00028219,15]
[327865920,1716564652214,-1059.43,0.00028219,15]
[327865921,1716564652223,-7502.62,0.00028219,15]
[327865922,1716564652232,-530.31,0.00028219,15]
[327865923,1716564652242,-2504.19,0.00028219,15]
[327865924,1716564652251,-8030.01,0.00028219,15]
[327865925,1716564652260,-500.0,0.00028219,15]
[327865926,1716564652272,-151.0,0.00028219,2]
[327865927,1716564652282,-889.01,0.00028219,15]
[327865928,1716564652291,-545.91,0.00028219,15]
[327865929,1716564652302,-6148.34,0.00028219,15]
[327865930,1716564652311,-305.043206,0.00028219,2]
[327865931,1716564652320,-1068.24,0.00028219,15]
[327865932,1716564652330,-1614.07,0.00028219,15]
[327865933,1716564652339,-305.043206,0.00028219,2]
[327865934,1716564652348,-500.0,0.00028219,15]
[327865935,1716564652358,-315.007455,0.00028219,2]
[327865936,1716564652368,-924.4,0.00028219,15]
[327865937,1716564652378,-500.0,0.00028219,15]
[327865938,1716564652387,-315.007455,0.00028219,2]
[327865939,1716564652396,-884.62,0.00028219,15]
[327865940,1716564652405,-500.0,0.00028219,15]
[327865941,1716564652414,-244.127757,0.00028219,2]
[327865942,1716564652423,-244.127757,0.00028219,2]
[327865943,1716564652432,-500.0,0.00028219,15]
[327865944,1716564652441,-500.0,0.00028219,15]
[327865945,1716564652450,-4788.64,0.00028219,15]
[327865946,1716564652459,-500.0,0.00028219,15]
[327865947,1716564652468,-812.5,0.00028219,15]
[327865948,1716564652479,-1661.62,0.00028219,15]
[327865949,1716564652488,-500.0,0.00028219,15]
[327865950,1716564652497,-1173.5,0.00028219,15]
[327865951,1716564652506,-806.11,0.00028219,15]
[327865952,1716564652516,-3102.78,0.00028219,15]
[327865953,1716564652525,-1278.05,0.00028219,15]
[327865954,1716564652538,-500.0,0.00028219,15]
[327865955,1716564652547,-500.0,0.00028219,15]
[327865956,1716564652556,-1329.45,0.00028219,15]
[327865957,1716564652566,-1112.55,0.00028219,15]
[327865958,1716564652575,-653.06,0.00028219,15]
[327865959,1716564652584,-1910.11,0.00028219,15]
[327865960,1716564652594,-500.0,0.00028219,15]
[327865961,1716564652603,-151.0,0.00028219,2]
[327865962,1716564652612,-1049.93,0.00028219,15]
[327865963,1716564652624,-1410.9,0.00028219,15]
[327865964,1716564652633,-500.0,0.00028219,15]
[327865965,1716564652643,-151.0,0.00028219,2]
[327865966,1716564652652,-300.0,0.000284,2]
[327865967,1716564652665,-631.07706099,0.00028474,2]
[327865968,1716564652675,-500.0,0.00028493,16]
[327865969,1716564652684,-500.77,0.00028493,16]
[327865970,1716564652693,-507.34276375,0.00028493,16]
[327865971,1716564652705,-500.0,0.00028493,16]
[327865972,1716564652713,-500.0,0.00028493,16]
[327865973,1716564652722,-500.0,0.00028493,16]
[327865974,1716564652731,-561.5,0.00028493,16]
[327865975,1716564652742,-500.0,0.00028493,16]
[327865976,1716564652751,-500.0,0.00028493,16]
[327865977,1716564652761,-500.0,0.00028493,16]
[327865978,1716564652770,-151.0,0.00028493,2]
[327865979,1716564652780,-609.98,0.00028493,16]
[327865980,1716564652789,-616.7,0.00028493,16]
[327865981,1716564652798,-969.24,0.00028493,16]
[327865982,1716564652807,-719.31,0.00028493,16]
[327865983,1716564652816,-151.0,0.00028493,2]
[327865984,1716564652826,-1248.42,0.00028493,16]
[327865985,1716564652835,-151.0,0.00028493,2]
[327865986,1716564652844,-500.0,0.00028493,16]
[327865987,1716564652854,-945.5,0.00028493,16]
[327865988,1716564652863,-158.057858,0.00028493,2]
[327865989,1716564652872,-158.057858,0.00028493,2]
[327865990,1716564652882,-151.0,0.00028493,2]
[327865991,1716564652892,-151.0,0.00028493,2]
[327865992,1716564652901,-500.0,0.00028493,16]
[327865993,1716564652910,-603.17,0.00028493,16]
[327865994,1716564652920,-2571.68,0.00028493,16]
[327865995,1716564652929,-849.22,0.00028493,16]
[327865996,1716564652938,-749.55,0.00028493,16]
[327865997,1716564652947,-151.0,0.00028493,2]
[327865998,1716564652956,-151.0,0.00028493,2]
[327865999,1716564652966,-1059.43,0.00028493,16]
[327866000,1716564652974,-7502.62,0.00028493,16]
[327866001,1716564652983,-530.31,0.00028493,16]
[327866002,1716564652992,-2504.19,0.00028493,16]
[327866003,1716564653003,-8030.01,0.00028493,16]
[327866004,1716564653012,-151.0,0.00028493,2]
[327866005,1716564653021,-151.0,0.00028493,2]
[327866006,1716564653030,-500.0,0.00028493,16]
[327866007,1716564653038,-151.0,0.00028493,2]
[327866008,1716564653047,-889.01,0.00028493,16]
[327866009,1716564653058,-545.91,0.00028493,16]
[327866010,1716564653068,-6148.34,0.00028493,16]
[327866011,1716564653077,-1068.24,0.00028493,16]
[327866012,1716564653086,-1614.07,0.00028493,16]
[327866013,1716564653095,-500.0,0.00028493,16]
[327866014,1716564653104,-924.4,0.00028493,16]
[327866015,1716564653114,-500.0,0.00028493,16]
[327866016,1716564653123,-884.62,0.00028493,16]
[327866017,1716564653132,-500.0,0.00028493,16]
[327866018,1716564653141,-500.0,0.00028493,16]
[327866019,1716564653150,-500.0,0.00028493,16]
[327866020,1716564653159,-4788.64,0.00028493,16]
[327866021,1716564653169,-500.0,0.00028493,16]
[327866022,1716564653178,-812.5,0.00028493,16]
[327866023,1716564653187,-1661.62,0.00028493,16]
[327866024,1716564653197,-500.0,0.00028493,16]
[327866025,1716564653207,-1173.5,0.00028493,16]
[327866026,1716564653216,-806.11,0.00028493,16]
[327866027,1716564653225,-3102.78,0.00028493,16]
[327866028,1716564653235,-1278.05,0.00028493,16]
[327866029,1716564653244,-500.0,0.00028493,16]
[327866030,1716564653253,-151.0,0.00028493,2]
[327866031,1716564653262,-500.0,0.00028493,16]
[327866032,1716564653272,-151.0,0.00028493,2]
[327866033,1716564653281,-1329.45,0.00028493,16]
[327866034,1716564653290,-1112.55,0.00028493,16]
[327866035,1716564653300,-653.06,0.00028493,16]
[327866036,1716564653309,-1910.11,0.00028493,16]
[327866037,1716564653318,-500.0,0.00028493,16]
[327866038,1716564653327,-236.159369,0.00028493,2]
[327866039,1716564653336,-236.159369,0.00028493,2]
[327866040,1716564653345,-1049.93,0.00028493,16]
[327866041,1716564653355,-1410.9,0.00028493,16]
[327866042,1716564653364,-500.0,0.00028493,16]
[327866043,1716564653373,-151.0,0.0002864,30]
[327866044,1716564653382,-500.0,0.00028767,17]
[327866045,1716564653391,-151.0,0.00028767,2]
[327866046,1716564653400,-500.77,0.00028767,17]
[327866047,1716564653410,-500.0,0.00028767,17]
[327866048,1716564653419,-500.0,0.00028767,17]
[327866049,1716564653428,-151.0,0.00028767,2]
[327866050,1716564653437,-500.0,0.00028767,17]
[327866051,1716564653446,-151.0,0.00028767,2]
[327866052,1716564653456,-561.5,0.00028767,17]
[327866053,1716564653465,-151.0,0.00028767,2]
[327866054,1716564653474,-435.7352851,0.00028767,17]
[327866055,1716564653484,-151.0,0.00028767,2]
[327866056,1716564653493,-500.0,0.00028767,17]
[327866057,1716564653501,-500.0,0.00028767,17]
[327866058,1716564653625,-609.98,0.00028767,17]
[327866059,1716564653634,-616.7,0.00028767,17]
[327866060,1716564653644,-969.24,0.00028767,17]
[327866061,1716564653654,-719.31,0.00028767,17]
[327866062,1716564653668,-1248.42,0.00028767,17]
[327866063,1716564653677,-500.0,0.00028767,17]
[327866064,1716564653686,-945.5,0.00028767,17]
[327866065,1716564653695,-500.0,0.00028767,17]
[327866066,1716564653708,-603.17,0.00028767,17]
[327866067,1716564653718,-2571.68,0.00028767,17]
[327866068,1716564653728,-849.22,0.00028767,17]
[327866069,1716564653737,-749.55,0.00028767,17]
[327866070,1716564653746,-1059.43,0.00028767,17]
[327866071,1716564653756,-7502.62,0.00028767,17]
[327866072,1716564653765,-530.31,0.00028767,17]
[327866073,1716564653775,-2504.19,0.00028767,17]
[327866074,1716564653784,-8030.01,0.00028767,17]
[327866075,1716564653793,-500.0,0.00028767,17]
[327866076,1716564653801,-889.01,0.00028767,17]
[327866077,1716564653810,-545.91,0.00028767,17]
[327866078,1716564653820,-6148.34,0.00028767,17]
[327866079,1716564653829,-1068.24,0.00028767,17]
[327866080,1716564653839,-1614.07,0.00028767,17]
[327866081,1716564653848,-500.0,0.00028767,17]
[327866082,1716564653858,-924.4,0.00028767,17]
[327866083,1716564653868,-500.0,0.00028767,17]
[327866084,1716564653877,-884.62,0.00028767,17]
[327866085,1716564653886,-500.0,0.00028767,17]
[327866086,1716564653895,-500.0,0.00028767,17]
[327866087,1716564653905,-500.0,0.00028767,17]
[327866088,1716564653914,-151.0,0.00028767,2]
[327866089,1716564653923,-4788.64,0.00028767,17]
[327866090,1716564653932,-265.18454235,0.00028767,17]
[327866091,1716564653941,-812.5,0.00028767,17]
[327866092,1716564653953,-1661.62,0.00028767,17]
[327866093,1716564653963,-500.0,0.00028767,17]
[327866094,1716564653972,-1173.5,0.00028767,17]
[327866095,1716564653982,-241.488827,0.00028767,2]
[327866096,1716564653992,-806.11,0.00028767,17]
[327866097,1716564654001,-241.488827,0.00028767,2]
[327866098,1716564654011,-3102.78,0.00028767,17]
[327866099,1716564654025,-1278.05,0.00028767,17]
[327866100,1716564654034,-500.0,0.00028767,17]
[327866101,1716564654043,-500.0,0.00028767,17]
[327866102,1716564654053,-153.534979,0.00028767,2]
[327866103,1716564654063,-153.534979,0.00028767,2]
[327866104,1716564654072,-1329.45,0.00028767,17]
[327866105,1716564654082,-1112.55,0.00028767,17]
[327866106,1716564654092,-653.06,0.00028767,17]
[327866107,1716564654101,-1910.11,0.00028767,17]
[327866108,1716564654111,-500.0,0.00028767,17]
[327866109,1716564654120,-1410.9,0.00028767,17]
[327866110,1716564654129,-1049.93,0.00028767,17]
[327866111,1716564654139,-500.0,0.00028767,17]
[327866112,1716564654148,-2843.09208633,0.0002877,2]
[327866113,1716564654157,-572.03808965,0.000289,2]
[327866114,1716564654166,-150.83408251,0.00028967,2]
[327866115,1716564654175,-250.21564279,0.00028967,2]
[327866116,1716564654185,-154.99706553,0.00029,2]
[327866117,1716564654194,-414.88000791,0.00029,2]
[327866118,1716564654203,-1000.0,0.00029,10]
[327866119,1716564654213,-169.73803509,0.00029,30]
[327866120,1716564654222,-168.78981311,0.00029023,2]
[327866121,1716564654231,-165.09678267,0.00029039,2]
[327866122,1716564654240,-500.0,0.00029041,18]
[327866123,1716564654249,-151.0,0.00029041,2]
[327866124,1716564654258,-152.077392,0.00029041,2]
[327866125,1716564654268,-500.77,0.00029041,18]
[327866126,1716564654277,-500.0,0.00029041,18]
[327866127,1716564654287,-500.0,0.00029041,18]
[327866128,1716564654296,-500.0,0.00029041,18]
[327866129,1716564654305,-561.5,0.00029041,18]
[327866130,1716564654315,-500.0,0.00029041,18]
[327866131,1716564654325,-500.0,0.00029041,18]
[327866132,1716564654335,-609.98,0.00029041,18]
[327866133,1716564654344,-616.7,0.00029041,18]
[327866134,1716564654353,-969.24,0.00029041,18]
[327866135,1716564654362,-719.31,0.00029041,18]
[327866136,1716564654372,-1248.42,0.00029041,18]
[327866137,1716564654382,-500.0,0.00029041,18]
[327866138,1716564654392,-945.5,0.00029041,18]
[327866139,1716564654401,-500.0,0.00029041,18]
[327866140,1716564654411,-603.17,0.00029041,18]
[327866141,1716564654420,-2571.68,0.00029041,18]
[327866142,1716564654430,-849.22,0.00029041,18]
[327866143,1716564654439,-749.55,0.00029041,18]
[327866144,1716564654448,-1059.43,0.00029041,18]
[327866145,1716564654460,-7502.62,0.00029041,18]
[327866146,1716564654469,-530.31,0.00029041,18]
[327866147,1716564654479,-2504.19,0.00029041,18]
[327866148,1716564654488,-8030.01,0.00029041,18]
[327866149,1716564654498,-500.0,0.00029041,18]
[327866150,1716564654507,-151.0,0.00029041,2]
[327866151,1716564654517,-889.01,0.00029041,18]
[327866152,1716564654527,-545.91,0.00029041,18]
[327866153,1716564654536,-305.043206,0.00029041,2]
[327866154,1716564654546,-6148.34,0.00029041,18]
[327866155,1716564654555,-1068.24,0.00029041,18]
[327866156,1716564654565,-305.043206,0.00029041,2]
[327866157,1716564654574,-1614.07,0.00029041,18]
[327866158,1716564654584,-500.0,0.00029041,18]
[327866159,1716564654594,-315.007455,0.00029041,2]
[327866160,1716564654603,-315.007455,0.00029041,2]
[327866161,1716564654613,-924.4,0.00029041,18]
[327866162,1716564654622,-500.0,0.00029041,18]
[327866163,1716564654631,-884.62,0.00029041,18]
[327866164,1716564654641,-500.0,0.00029041,18]
[327866165,1716564654650,-244.127757,0.00029041,2]
[327866166,1716564654662,-244.127757,0.00029041,2]
[327866167,1716564654671,-500.0,0.00029041,18]
[327866168,1716564654685,-530.51638914,0.00029041,18]
[327866169,1716564654702,-4788.64,0.00029041,18]
[327866170,1716564654719,-812.5,0.00029041,18]
[327866171,1716564654732,-1661.62,0.00029041,18]
[327866172,1716564654747,-500.0,0.00029041,18]
[327866173,1716564654761,-1173.5,0.00029041,18]
[327866174,1716564654775,-806.11,0.00029041,18]
[327866175,1716564654791,-3102.78,0.00029041,18]
[327866176,1716564654805,-1278.05,0.00029041,18]
[327866177,1716564654822,-500.0,0.00029041,18]
[327866178,1716564654838,-500.0,0.00029041,18]
[327866179,1716564654851,-1329.45,0.00029041,18]
[327866180,1716564654865,-1112.55,0.00029041,18]
[327866181,1716564654879,-653.06,0.00029041,18]
[327866182,1716564654895,-1910.11,0.00029041,18]
[327866183,1716564654908,-500.0,0.00029041,18]
[327866184,1716564654920,-151.0,0.00029041,2]
[327866185,1716564654932,-1410.9,0.00029041,18]
[327866186,1716564654945,-1049.93,0.00029041,18]
[327866187,1716564654961,-500.0,0.00029041,18]
[327866188,1716564654974,-155.17465311,0.00029047,2]
[327866189,1716564654988,-165.09678267,0.00029122,2]
[327866190,1716564655003,-307.3427078,0.00029136,2]
[327866191,1716564655018,-153.0,0.00029136,2]
[327866192,1716564655031,-306.0,0.00029136,2]
[327866193,1716564655042,-153.0,0.00029136,2]
[327866194,1716564655053,-356.8077003,0.00029136,2]
[327866195,1716564655064,-158.65629788,0.00029279,2]
[327866196,1716564655078,-2058.03552149,0.00029283,2]
[327866197,1716564655093,-168.78981311,0.00029296,2]
[327866198,1716564655104,-595.46977875,0.00029315,19]
[327866199,1716564655116,-500.77,0.00029315,19]
[327866200,1716564655128,-500.0,0.00029315,19]
[327866201,1716564655141,-500.0,0.00029315,19]
[327866202,1716564655153,-500.0,0.00029315,19]
[327866203,1716564655164,-561.5,0.00029315,19]
[327866204,1716564655176,-500.0,0.00029315,19]
[327866205,1716564655188,-500.0,0.00029315,19]
[327866206,1716564655200,-609.98,0.00029315,19]
[327866207,1716564655212,-616.7,0.00029315,19]
[327866208,1716564655224,-969.24,0.00029315,19]
[327866209,1716564655236,-719.31,0.00029315,19]
[327866210,1716564655248,-1248.42,0.00029315,19]
[327866211,1716564655259,-500.0,0.00029315,19]
[327866212,1716564655270,-945.5,0.00029315,19]
[327866213,1716564655282,-500.0,0.00029315,19]
[327866214,1716564655293,-603.17,0.00029315,19]
[327866215,1716564655306,-2571.68,0.00029315,19]
[327866216,1716564655317,-849.22,0.00029315,19]
[327866217,1716564655329,-749.55,0.00029315,19]